bitfinex/quotes_SOLUSD_20251218
["timestamp","ask_amount","ask_price","bid_price","bid_amount"]
[1766046229146,6.48385064,123.52,123.47,15.29379556]
[1766046229319,7.14385064,123.53,123.49,0.68]
[1766046229522,7.14385064,123.53,123.49,8.77782161]
[1766046230035,6.48385064,123.52,123.49,8.77782161]
[1766046230362,6.48385064,123.52,123.49,0.68]
[1766046230745,8.75549068,123.53,123.49,0.68]
[1766046230954,6.48385064,123.52,123.49,0.68]
[1766046231675,7.14385064,123.53,123.49,8.77766332]
[1766046232167,6.48385064,123.52,123.49,8.77766332]
[1766046232542,6.48385064,123.52,123.48,8.80994492]
[1766046232543,0.66,123.51,123.47,0.68]
[1766046232744,0.66,123.47,123.37,40.52750468]
[1766046233038,6.48385064,123.48,123.38,0.68]
[1766046233039,6.48385064,123.44,123.38,0.68]
[1766046233345,6.48385064,123.43,123.39,8.10389627]
[1766046233545,7.14385064,123.45,123.4,6.48385064]
[1766046233747,15.36385064,123.45,123.41,0.68]
[1766046233942,8.88,123.45,123.42,0.68]
[1766046235070,15.36385064,123.45,123.41,8.7828601]
[1766046235263,6.48385064,123.44,123.41,8.7828601]
[1766046236255,9.54,123.45,123.41,8.7828601]
[1766046236455,6.48385064,123.44,123.41,8.7828601]
[1766046236850,6.48385064,123.44,123.4,20.25783753]
[1766046236851,0.66,123.44,123.4,8.78364979]
[1766046237042,6.48385064,123.42,123.39,8.10411133]
[1766046237348,40.74174782,123.66,123.54,0.99999999]
[1766046237541,6.48385064,123.59,123.54,0.99999999]
[1766046237746,6.48385064,123.58,123.55,0.99999999]
[1766046238367,8.88,123.6,123.55,0.99999999]
[1766046238554,14.57579601,123.58,123.55,0.99999999]
[1766046238756,14.57579601,123.58,123.54,8.09432655]
[1766046238757,6.48385064,123.57,123.54,0.99999999]
[1766046238944,6.48385064,123.57,123.55,0.99999999]
[1766046239144,6.48385064,123.57,123.54,0.99999999]
[1766046239338,0.66,123.56,123.54,0.99999999]
[1766046239577,0.66,123.56,123.53,9.09478163]
[1766046239757,7.14385064,123.57,123.53,9.09478163]
[1766046239944,0.66,123.57,123.53,15.57863227]
[1766046240278,0.66,123.57,123.53,0.99999999]
[1766046240279,0.66,123.55,123.53,0.99999999]
[1766046240461,0.66,123.55,123.54,0.99999999]
[1766046240639,9.54,123.56,123.54,0.99999999]
[1766046240843,6.48385064,123.55,123.53,0.99999999]
[1766046241148,0.66,123.55,123.53,0.99999999]
[1766046241349,0.66,123.55,123.54,0.99999999]
[1766046241765,8.88,123.56,123.53,0.99999999]
[1766046241976,9.54,123.56,123.53,0.99999999]
[1766046242143,7.14385064,123.55,123.52,0.99999999]
[1766046242343,16.97365852,123.56,123.47,15.2628721]
[1766046242344,0.66,123.52,123.47,15.2628721]
[1766046242575,17.63599224,123.52,123.48,0.68]
[1766046242746,8.88,123.52,123.47,28.34685494]
[1766046242947,8.88,123.52,123.49,7.16385064]
[1766046243151,8.88,123.52,123.48,7.16385064]
[1766046243347,8.88,123.52,123.49,0.68]
[1766046244064,24.11972958,123.52,123.48,0.68]
[1766046244373,0.66,123.51,123.47,8.77902146]
[1766046244570,40.44575235,123.63,123.5,6.48385064]
[1766046244866,0.66,123.58,123.53,6.48385064]
[1766046245071,0.66,123.57,123.53,6.48385064]
[1766046245475,0.66,123.57,123.53,0.68]
[1766046245676,0.66,123.57,123.53,7.16385064]
[1766046245983,0.66,123.58,123.54,7.16385064]
[1766046246146,0.66,123.58,123.54,6.48385064]
[1766046246354,0.66,123.57,123.53,6.48385064]
[1766046246672,8.75277639,123.57,123.53,0.68]
[1766046247062,8.75277639,123.57,123.53,7.16385064]
[1766046247374,0.66,123.56,123.53,14.57903414]
[1766046247547,8.88,123.55,123.53,6.48385064]
[1766046248170,8.88,123.55,123.52,8.77565319]
[1766046248371,6.48385064,123.54,123.49,0.68]
[1766046248581,8.75599953,123.52,123.48,6.48385064]
[1766046248749,8.88,123.51,123.48,15.26232504]
[1766046248956,8.88,123.51,123.49,6.48385064]
[1766046249153,8.88,123.52,123.51,0.68]
[1766046249357,8.88,123.54,123.51,7.16385064]
[1766046249876,8.88,123.54,123.49,0.68]
[1766046250051,9.54,123.54,123.5,13.09214018]
[1766046250256,9.54,123.54,123.51,5.92828954]
[1766046250451,20.8886004,123.59,123.53,6.48385064]
[1766046250679,0.66,123.58,123.54,6.61786566]
[1766046250991,8.75065191,123.6,123.56,6.48385064]
[1766046251280,8.88,123.59,123.57,5.95085691]
[1766046251483,8.88,123.59,123.58,5.95085691]
[1766046251863,8.88,123.59,123.58,6.63085691]
[1766046252184,7.19385064,123.62,123.58,6.63085691]
[1766046252349,9.59,123.62,123.59,5.95085691]
[1766046252550,16.07385064,123.62,123.6,5.95085691]
[1766046252758,7.16385064,123.61,123.57,8.81229319]
[1766046253048,7.16385064,123.61,123.58,5.94831035]
[1766046253262,7.16385064,123.61,123.59,5.94831035]
[1766046253470,11.20581742,123.61,123.6,5.94831035]
[1766046253663,10.52581742,123.61,123.55,0.72]
[1766046253979,11.20581742,123.6,123.55,0.72]
[1766046254277,0.68,123.6,123.55,8.81377471]
[1766046254575,0.68,123.6,123.56,0.72]
[1766046254576,19.29694742,123.6,123.56,0.72]
[1766046254879,8.77113,123.6,123.56,0.72]
[1766046255351,8.77113,123.6,123.55,8.09377471]
[1766046255545,0.68,123.59,123.55,19.33959213]
[1766046256175,0.68,123.59,123.55,0.72]
[1766046256561,0.68,123.57,123.53,8.09512092]
[1766046256771,0.68,123.57,123.53,8.81512092]
[1766046257082,0.68,123.57,123.54,8.0944327]
[1766046257380,28.17766341,123.59,123.55,8.81387477]
[1766046257770,17.65184599,123.59,123.55,8.81387477]
[1766046259075,28.17766341,123.59,123.55,8.81387477]
[1766046259477,8.88,123.59,123.56,0.72]
[1766046261370,8.88,123.59,123.56,8.81294224]
[1766046261882,9.56,123.59,123.56,8.09294224]
[1766046262369,19.29831516,123.6,123.56,8.81294224]
[1766046262569,0.68,123.59,123.56,0.72]
[1766046262963,0.68,123.59,123.52,17.68994492]
[1766046262964,10.52756463,123.58,123.53,0.72]
[1766046263160,0.68,123.57,123.53,8.09483334]
[1766046263380,19.30028055,123.57,123.53,8.81483334]
[1766046263583,8.77271592,123.57,123.53,8.81483334]
[1766046263757,19.30028055,123.57,123.53,8.81483334]
[1766046268385,28.17979914,123.58,123.54,0.72]
[1766046268575,0.68,123.57,123.54,0.72]
[1766046268777,0.68,123.57,123.53,8.09483334]
[1766046269081,0.68,123.57,123.53,8.81483334]
[1766046269293,16.97223451,123.58,123.54,0.72]
[1766046269470,17.65223451,123.58,123.54,0.72]
[1766046269797,28.17979914,123.58,123.54,0.72]
[1766046270294,8.88,123.58,123.55,0.72]
[1766046270666,19.29884298,123.59,123.55,0.72]
[1766046271091,16.97092086,123.6,123.56,0.72]
[1766046271297,28.17848549,123.6,123.56,0.72]
[1766046271473,0.68,123.59,123.56,0.72]
[1766046272185,8.77140431,123.59,123.56,0.72]
[1766046272370,8.09140431,123.59,123.56,0.72]
[1766046272690,18.61896894,123.59,123.56,0.72]
[1766046272993,18.61896894,123.59,123.54,8.09427261]
[1766046273181,0.68,123.58,123.54,8.81427261]
[1766046273970,11.20756463,123.58,123.54,8.81427261]
[1766046274170,0.68,123.58,123.55,0.72]
[1766046275295,0.68,123.58,123.54,8.09427261]
[1766046275296,28.31768104,123.6,123.54,8.09427261]
[1766046275469,0.68,123.57,123.53,0.72]
[1766046275670,11.20756463,123.57,123.53,0.72]
[1766046276294,0.68,123.56,123.52,8.81539302]
[1766046276595,19.30074287,123.57,123.53,0.72]
[1766046276967,0.68,123.56,123.52,8.81539302]
[1766046277172,11.20756463,123.55,123.5,0.72]
[1766046277391,11.20756463,123.54,123.5,0.72]
[1766046277595,0.68,123.54,123.5,0.72]
[1766046277781,11.20756463,123.54,123.5,0.72]
[1766046277978,10.52756463,123.53,123.48,28.21750955]
[1766046278183,4.23116717,123.63,123.52,10.52756463]
[1766046278378,11.20756463,123.56,123.51,27.50370347]
[1766046278588,11.20756463,123.55,123.5,27.50446776]
[1766046278792,11.20756463,123.55,123.51,0.72]
[1766046279294,11.20756463,123.55,123.48,8.80994492]
[1766046279295,11.20756463,123.52,123.48,8.81821038]
[1766046279498,0.68,123.52,123.49,0.72]
[1766046279676,11.20756463,123.52,123.49,0.72]
[1766046280418,19.3039611,123.52,123.48,0.72]
[1766046280987,10.52756463,123.51,123.46,16.97963455]
[1766046281183,0.68,123.5,123.47,0.72]
[1766046281503,0.68,123.51,123.47,0.72]
[1766046281804,11.20756463,123.51,123.47,0.72]
[1766046282176,19.30412804,123.51,123.47,0.72]
[1766046282681,19.30412804,123.51,123.47,8.81909209]
[1766046283600,19.30412804,123.51,123.47,0.72]
[1766046283806,20.11756463,123.5,123.47,0.72]
[1766046283983,10.52756463,123.49,123.47,0.72]
[1766046284303,10.52756463,123.49,123.46,0.66]
[1766046284596,28.21495327,123.5,123.47,0.66]
[1766046285173,17.68738864,123.5,123.47,0.66]
[1766046285376,28.21495327,123.5,123.47,0.66]
[1766046286584,8.88,123.5,123.48,0.66]
[1766046288104,8.88,123.54,123.5,0.66]
[1766046288409,8.88,123.54,123.51,0.66]
[1766046288927,0.71,123.56,123.51,10.52756463]
[1766046289080,8.88,123.55,123.52,0.66]
[1766046289283,8.88,123.57,123.53,0.66]
[1766046289709,20.11756463,123.57,123.53,0.66]
[1766046290013,9.59,123.57,123.53,0.66]
[1766046290189,8.88,123.57,123.54,0.66]
[1766046290703,9.59,123.57,123.54,0.66]
[1766046290894,20.11756463,123.57,123.53,8.75490429]
[1766046291085,8.88,123.57,123.54,0.66]
[1766046291479,19.32950809,123.58,123.54,0.66]
[1766046291808,28.20950809,123.58,123.54,0.66]
[1766046291982,10.52756463,123.57,123.54,0.66]
[1766046292378,17.68194346,123.58,123.54,0.66]
[1766046292580,10.52756463,123.57,123.54,0.66]
[1766046293300,17.68194346,123.58,123.54,8.75445825]
[1766046293605,10.52756463,123.57,123.54,8.75445825]
[1766046293801,11.23756463,123.56,123.52,8.75539313]
[1766046294006,11.23756463,123.56,123.52,0.66]
[1766046294507,19.33081517,123.56,123.52,0.66]
[1766046294714,10.52756463,123.54,123.51,0.66]
[1766046294878,11.23756463,123.54,123.51,0.66]
[1766046295209,11.23756463,123.54,123.5,8.75698716]
[1766046295787,10.52756463,123.53,123.5,8.75698716]
[1766046296197,0.71,123.54,123.5,8.09698716]
[1766046296399,17.68412483,123.55,123.51,0.66]
[1766046296703,10.52756463,123.54,123.51,0.66]
[1766046297107,11.23756463,123.54,123.51,0.66]
[1766046297331,11.23756463,123.54,123.44,29.06247764]
[1766046297332,0.71,123.51,123.44,29.06247764]
[1766046297480,10.52756463,123.48,123.45,0.66]
[1766046297683,19.40756463,123.5,123.46,0.66]
[1766046297884,11.23756463,123.51,123.46,0.66]
[1766046298080,10.52756463,123.5,123.46,0.66]
[1766046298304,10.52756463,123.49,123.46,0.66]
[1766046299384,10.52756463,123.49,123.46,8.75953987]
[1766046300423,11.23756463,123.5,123.46,8.75941464]
[1766046300611,0.71,123.5,123.47,0.66]
[1766046300815,11.23756463,123.5,123.47,0.66]
[1766046302219,10.52756463,123.49,123.47,0.66]
[1766046302397,11.23756463,123.48,123.44,0.66]
[1766046302714,11.23756463,123.48,123.45,5.98573159]
[1766046302924,11.23756463,123.48,123.44,8.76070826]
[1766046303214,28.21409979,123.51,123.46,0.66]
[1766046303416,0.71,123.5,123.46,0.66]
[1766046303619,11.23756463,123.5,123.46,0.66]
[1766046303984,0.71,123.5,123.46,0.66]
[1766046304188,11.23756463,123.5,123.46,8.75951033]
[1766046304916,10.52756463,123.49,123.46,8.75978767]
[1766046305119,10.52756463,123.49,123.47,0.66]
[1766046305611,10.52756463,123.5,123.47,0.66]
[1766046306315,8.88,123.51,123.48,8.75847748]
[1766046306498,8.80551782,123.53,123.48,8.75847748]
[1766046306499,10.52756463,123.52,123.49,0.66]
[1766046307022,10.52756463,123.54,123.49,0.66]
[1766046307704,0.71,123.51,123.48,8.75847748]
[1766046307898,0.71,123.52,123.48,8.75847748]
[1766046308202,10.52756463,123.51,123.48,8.75847748]
[1766046308522,10.52756463,123.51,123.47,8.09883242]
[1766046308721,0.71,123.51,123.47,8.75883242]
[1766046308900,10.52756463,123.52,123.48,8.09845047]
[1766046309098,8.88,123.55,123.49,0.66]
[1766046309099,10.52756463,123.54,123.49,0.66]
[1766046309706,11.23756463,123.54,123.49,0.66]
[1766046310219,10.52756463,123.55,123.51,0.66]
[1766046310444,10.52756463,123.56,123.51,0.66]
[1766046310596,0.71,123.56,123.51,10.52756463]
[1766046310921,11.23756463,123.56,123.52,0.66]
[1766046311093,28.21027914,123.57,123.52,0.66]
[1766046311512,17.68271451,123.57,123.52,0.66]
[1766046311723,11.24756463,123.56,123.52,0.66]
[1766046311896,11.24756463,123.56,123.52,8.75558185]
[1766046312095,18.62082989,123.56,123.52,8.09558185]
[1766046312321,10.52756463,123.56,123.53,0.71]
[1766046313017,11.20756463,123.55,123.51,8.80618651]
[1766046313526,11.20756463,123.56,123.52,8.80544091]
[1766046314517,10.52756463,123.56,123.53,0.71]
[1766046314710,11.20756463,123.56,123.53,0.71]
[1766046315124,10.52756463,123.54,123.5,0.71]
[1766046315309,11.20756463,123.54,123.51,0.71]
[1766046315510,7.16522274,123.54,123.51,0.71]
[1766046315714,0.68,123.54,123.51,8.80637436]
[1766046315913,7.16522274,123.54,123.51,8.80637436]
[1766046316110,7.16522274,123.53,123.47,26.73237451]
[1766046316425,7.16522274,123.53,123.49,0.71]
[1766046316602,7.16522274,123.53,123.49,8.80749438]
[1766046316798,7.16522274,123.53,123.5,0.71]
[1766046317216,7.16522274,123.53,123.5,8.80712386]
[1766046317826,7.16522274,123.53,123.49,8.80749881]
[1766046318120,0.68,123.5,123.48,8.09836044]
[1766046318302,7.16522274,123.51,123.48,8.09836044]
[1766046318498,0.68,123.51,123.48,8.80836044]
[1766046319619,7.16522274,123.51,123.47,8.80884904]
[1766046319824,28.33396674,123.53,123.47,8.09901101]
[1766046320125,7.16522274,123.52,123.48,8.80836159]
[1766046320301,0.68,123.51,123.48,8.80836159]
[1766046321026,7.16522274,123.51,123.48,8.09836159]
[1766046321998,0.68,123.51,123.48,8.09836159]
[1766046322202,7.16522274,123.51,123.48,8.09836159]
[1766046322401,6.48522274,123.51,123.48,8.09836159]
[1766046322626,7.16522274,123.5,123.48,8.09836159]
[1766046323530,7.16522274,123.5,123.47,8.80884506]
[1766046326007,0.68,123.5,123.47,8.09884506]
[1766046326231,7.16522274,123.5,123.47,8.09884506]
[1766046326429,7.16522274,123.5,123.47,8.80884506]
[1766046326609,6.48522274,123.52,123.49,0.71]
[1766046327006,7.16522274,123.53,123.49,0.71]
[1766046328133,0.68,123.52,123.49,0.71]
[1766046328532,7.16522274,123.52,123.49,0.71]
[1766046328734,7.16522274,123.52,123.49,8.80769401]
[1766046329428,7.16653023,123.52,123.49,8.80769401]
[1766046331627,8.09520778,123.53,123.5,0.71]
[1766046331628,6.48653023,123.53,123.5,0.71]
[1766046332135,7.16653023,123.53,123.5,0.71]
[1766046333834,7.16653023,123.53,123.5,8.80703614]
[1766046334130,6.48653023,123.52,123.5,8.09703614]
[1766046334337,7.16653023,123.51,123.49,8.09754025]
[1766046334517,6.48653023,123.51,123.49,8.09754025]
[1766046334922,7.16653023,123.52,123.49,8.80754025]
[1766046337438,3.10198345,123.52,123.49,8.80754025]
[1766046337946,3.10198345,123.51,123.45,20.24983613]
[1766046338239,30.75288841,123.54,123.48,8.09847127]
[1766046338240,0.68,123.5,123.48,8.09847127]
[1766046338637,0.68,123.52,123.48,8.80847127]
[1766046338833,3.10198345,123.52,123.49,8.80770132]
[1766046339030,3.10198345,123.52,123.49,8.09770132]
[1766046339031,0.68,123.51,123.49,8.09770132]
[1766046339539,3.10198345,123.51,123.49,8.09770132]
[1766046339836,0.68,123.51,123.48,8.80819201]
[1766046340825,3.10198345,123.51,123.48,8.80819201]
[1766046341231,3.10198345,123.51,123.48,8.09819201]
[1766046341416,3.10198345,123.5,123.48,8.09819201]
[1766046341618,2.42198345,123.5,123.47,8.09889887]
[1766046341922,0.68,123.49,123.47,8.09889887]
[1766046343044,2.42198345,123.48,123.45,8.76989799]
[1766046343220,2.42198345,123.47,123.43,8.30144305]
[1766046343422,2.42198345,123.48,123.44,0.67]
[1766046343624,2.42198345,123.47,123.44,8.1008365]
[1766046343825,0.7,123.47,123.44,8.7708365]
[1766046344625,3.12198345,123.47,123.44,8.7708365]
[1766046344835,0.7,123.47,123.44,8.7708365]
[1766046345157,2.42198345,123.47,123.44,8.7708365]
[1766046345530,0.7,123.49,123.45,0.67]
[1766046345719,0.7,123.49,123.46,8.0997894]
[1766046346046,3.12198345,123.49,123.46,8.7697894]
[1766046348237,3.12198345,123.49,123.46,8.0997894]
[1766046348434,0.7,123.48,123.46,8.0997894]
[1766046349135,2.42198345,123.47,123.43,0.2]
[1766046349333,3.12198345,123.46,123.43,8.97144995]
[1766046349529,3.12198345,123.46,123.43,0.87]
[1766046349835,0.7,123.44,123.43,0.2]
[1766046350025,3.12198345,123.44,123.41,0.67]
[1766046350227,2.42198345,123.44,123.41,0.67]
[1766046350428,2.42198345,123.44,123.42,0.67]
[1766046351036,2.42198345,123.44,123.41,8.10301003]
[1766046351237,2.42198345,123.44,123.41,8.77301003]
[1766046351634,2.42198345,123.45,123.42,0.67]
[1766046352652,3.12198345,123.46,123.42,0.67]
[1766046352834,2.42198345,123.45,123.42,0.67]
[1766046353450,2.42198345,123.45,123.42,8.77182408]
[1766046353751,0.7,123.45,123.42,8.77182408]
[1766046354052,3.12198345,123.45,123.42,8.77182408]
[1766046354854,3.12198345,123.45,123.42,0.67]
[1766046355043,3.12198345,123.44,123.41,8.77275706]
[1766046355246,2.42198345,123.44,123.41,8.77275706]
[1766046355475,2.42198345,123.44,123.42,0.67]
[1766046355947,2.42198345,123.44,123.41,8.10275706]
[1766046356132,2.42198345,123.44,123.41,8.77275706]
[1766046357231,0.7,123.44,123.41,8.77275706]
[1766046357828,3.12198345,123.44,123.41,8.77275706]
[1766046358259,11.22257345,123.45,123.41,8.77275706]
[1766046358460,11.22257345,123.45,123.42,0.67]
[1766046359231,11.22257345,123.45,123.41,8.77275706]
[1766046359430,0.7,123.44,123.41,8.77275706]
[1766046359747,3.12198345,123.44,123.41,8.77275706]
[1766046360141,8.10059,123.45,123.4,8.77369215]
[1766046360142,3.12198345,123.43,123.4,8.77369215]
[1766046360468,3.12198345,123.45,123.41,0.67]
[1766046361255,3.12198345,123.47,123.43,0.67]
[1766046362354,3.12198345,123.47,123.44,8.77110174]
[1766046363551,0.7,123.46,123.44,8.10110174]
[1766046364061,3.12198345,123.47,123.44,8.77110174]
[1766046365661,0.7,123.46,123.43,8.77145056]
[1766046366157,0.7,123.49,123.45,0.67]
[1766046366343,3.12198345,123.49,123.45,8.77024407]
[1766046367254,0.7,123.49,123.45,8.77024407]
[1766046367463,3.12198345,123.49,123.45,8.77024407]
[1766046367833,11.21980552,123.49,123.46,0.67]
[1766046368764,8.79782207,123.49,123.46,0.67]
[1766046368948,10.51987319,123.49,123.45,8.10024407]
[1766046369150,0.7,123.47,123.44,8.77072946]
[1766046369661,0.7,123.49,123.45,8.77000397]
[1766046369867,0.7,123.49,123.46,8.76973801]
[1766046369868,3.12198345,123.49,123.46,8.76973801]
[1766046370571,3.12198345,123.48,123.45,8.77014525]
[1766046370756,2.42198345,123.47,123.45,8.10014525]
[1766046370963,3.12198345,123.48,123.45,8.77014525]
[1766046371265,0.7,123.48,123.45,8.77014525]
[1766046374368,0.7,123.49,123.46,0.7]
[1766046374773,3.12198345,123.49,123.46,0.7]
[1766046375340,0.7,123.49,123.47,8.09913339]
[1766046376774,3.12198345,123.49,123.46,8.79949323]
[1766046377463,4.48586973,123.49,123.46,8.79949323]
[1766046378342,0.7,123.48,123.45,8.80011064]
[1766046379068,0.7,123.47,123.44,8.10093718]
[1766046379577,0.7,123.47,123.44,8.80093718]
[1766046379866,0.7,123.47,123.45,0.7]
[1766046380367,4.48586973,123.48,123.45,0.7]
[1766046380570,0.7,123.47,123.44,8.80093718]
[1766046381882,3.78586973,123.46,123.43,8.10160693]
[1766046382077,3.78586973,123.45,123.43,8.80160693]
[1766046382285,4.48586973,123.46,123.43,8.80160693]
[1766046384583,3.78586973,123.46,123.42,8.10241451]
[1766046384780,4.48586973,123.47,123.43,0.7]
[1766046384960,0.7,123.45,123.42,28.3584508]
[1766046385161,0.7,123.45,123.43,0.7]
[1766046385787,4.48586973,123.46,123.43,0.7]
[1766046386079,0.7,123.46,123.43,0.7]
[1766046386978,0.7,123.46,123.43,8.80150654]
[1766046387482,0.7,123.47,123.44,0.7]
[1766046387684,4.48586973,123.47,123.44,0.7]
[1766046387883,0.7,123.46,123.43,8.80150654]
[1766046388379,4.48586973,123.46,123.42,8.1021386]
[1766046388582,0.7,123.45,123.42,8.8021386]
[1766046389178,0.7,123.45,123.42,8.1021386]
[1766046389379,4.48586973,123.45,123.42,8.8021386]
[1766046389576,0.7,123.43,123.4,8.80342988]
[1766046389884,0.7,123.42,123.39,17.6840683]
[1766046390053,4.48586973,123.43,123.4,8.80371715]
[1766046391269,0.7,123.43,123.4,8.80371715]
[1766046393273,11.88710738,123.44,123.4,8.10371715]
[1766046393576,4.48586973,123.42,123.39,0.7]
[1766046394061,4.48586973,123.42,123.39,8.80395928]
[1766046394763,3.78586973,123.42,123.39,8.80395928]
[1766046394970,4.48586973,123.41,123.38,9.00473217]
[1766046395171,4.48586973,123.42,123.39,8.80433695]
[1766046396583,0.7,123.41,123.39,8.10433695]
[1766046396779,0.7,123.41,123.39,8.80433695]
[1766046397563,3.79017356,123.42,123.39,8.80433695]
[1766046397885,4.49017356,123.42,123.39,0.7]
[1766046398458,4.49017356,123.4,123.38,0.2]
[1766046398657,4.49017356,123.41,123.38,9.00498023]
[1766046398887,0.7,123.41,123.38,9.00498023]
[1766046399791,0.7,123.42,123.39,0.7]
[1766046400772,4.49017356,123.42,123.39,8.80427912]
[1766046400997,4.49017356,123.42,123.39,8.10427912]
[1766046401197,4.49017356,123.42,123.39,8.80427912]
[1766046401704,0.7,123.41,123.39,8.80427912]
[1766046401873,4.49017356,123.42,123.39,8.80427912]
[1766046402681,0.7,123.44,123.4,0.69]
[1766046402883,0.7,123.44,123.4,9.57]
[1766046403092,4.49017356,123.44,123.41,0.69]
[1766046404072,4.49017356,123.44,123.41,8.79304574]
[1766046404387,0.7,123.43,123.4,16.98344118]
[1766046404694,4.49017356,123.43,123.4,17.67344118]
[1766046406098,4.49017356,123.43,123.41,0.69]
[1766046406798,8.10078428,123.45,123.41,0.69]
[1766046407099,20.24826237,123.47,123.42,0.69]
[1766046407100,3.79017356,123.47,123.42,0.69]
[1766046407281,0.7,123.46,123.43,0.69]
[1766046408390,4.49017356,123.46,123.43,8.79162608]
[1766046409081,4.49017356,123.47,123.44,0.69]
[1766046409582,0.7,123.46,123.44,0.69]
[1766046409970,0.7,123.46,123.43,8.79162608]
[1766046410573,0.7,123.46,123.43,17.67162608]
[1766046410779,4.49017356,123.46,123.43,17.67162608]
[1766046411894,0.7,123.46,123.43,17.67162608]
[1766046414188,4.49017356,123.46,123.43,17.67162608]
[1766046414884,4.49017356,123.46,123.43,8.79162608]
[1766046416186,0.7,123.46,123.43,8.79162608]
[1766046416693,4.49017356,123.46,123.43,8.79162608]
[1766046418410,3.79017356,123.46,123.43,8.10162608]
[1766046418714,0.7,123.49,123.45,0.69]
[1766046418879,3.79017356,123.46,123.44,0.69]
[1766046419084,4.49017356,123.46,123.43,8.79162608]
[1766046419611,4.49017356,123.44,123.42,8.88]
[1766046419792,3.79017356,123.43,123.39,8.79389322]
[1766046419997,3.79017356,123.44,123.41,0.69]
[1766046420212,0.7,123.43,123.4,8.793366]
[1766046420698,0.7,123.42,123.4,8.103366]
[1766046420883,3.79017356,123.42,123.38,20.45006097]
[1766046421084,4.49017356,123.41,123.38,30.02006097]
[1766046421289,0.7,123.41,123.38,9.77]
[1766046421593,4.49017356,123.41,123.38,9.77]
[1766046421911,4.49017356,123.41,123.38,0.89]
[1766046422110,8.10196448,123.43,123.39,0.69]
[1766046422111,0.7,123.42,123.39,0.69]
[1766046422810,13.37017356,123.44,123.4,0.69]
[1766046422999,9.58,123.44,123.4,0.69]
[1766046423187,0.7,123.44,123.4,0.69]
[1766046423388,0.7,123.44,123.41,0.69]
[1766046423681,0.7,123.45,123.41,0.69]
[1766046424085,0.7,123.44,123.41,0.69]
[1766046424793,0.7,123.44,123.41,8.10287817]
[1766046424988,4.49017356,123.44,123.41,8.79287817]
[1766046425291,0.7,123.44,123.41,8.79287817]
[1766046426109,0.7,123.43,123.4,17.6735032]
[1766046426521,4.49017356,123.43,123.4,9.57]
[1766046426689,4.49017356,123.43,123.39,8.79405924]
[1766046426690,0.7,123.42,123.39,8.79405924]
[1766046426893,0.7,123.42,123.39,0.69]
[1766046427096,4.49017356,123.42,123.39,0.69]
[1766046427498,12.59133559,123.44,123.41,0.69]
[1766046427817,0.7,123.43,123.4,8.79360793]
[1766046431620,0.72,123.45,123.42,0.69]
[1766046431802,0.72,123.44,123.4,28.35532157]
[1766046432013,0.72,123.44,123.41,0.69]
[1766046432421,0.72,123.44,123.4,8.10360793]
[1766046432724,0.72,123.44,123.39,17.65407748]
[1766046432725,0.71,123.42,123.39,17.65407748]
[1766046433034,11.89156245,123.44,123.4,0.67]
[1766046433215,0.71,123.43,123.4,0.67]
[1766046434195,0.71,123.42,123.39,16.98407748]
[1766046434414,0.71,123.42,123.39,17.65407748]
[1766046435221,0.71,123.42,123.39,9.55]
[1766046435824,11.89197344,123.43,123.38,0.2]
[1766046435825,0.71,123.4,123.38,0.2]
[1766046437737,0.71,123.39,123.38,1e-08]
[1766046438063,0.71,123.39,123.37,0.2]
[1766046438064,11.24073223,123.39,123.37,0.2]
[1766046438851,0.71,123.39,123.37,0.2]
[1766046439022,0.71,123.38,123.37,0.2]
[1766046439810,10.53058354,123.39,123.37,0.2]
[1766046440024,10.53145683,123.38,123.35,0.2]
[1766046440234,0.71,123.36,123.35,0.2]
[1766046440404,0.71,123.37,123.35,0.2]
[1766046441715,20.12020175,123.4,123.36,0.67]